[Event "SS Manhem Chess Week 2019 Goteborg Open"]
[Site "Molnlycke kulturhus, Biblioteksgatan 2, Molnlycke, Sweden"]
[Date "2019.08.16"]
[Round "4.10"]
[White "Torngren, Gustav"]
[Black "Welin, Mats"]
[Result "1-0"]
[TimeControl "15 minutes + 5 seconds per move from move one (Round 1 - 4) / 90 minutes + 30 seconds per move from move one (Round 5 - 8)"]
[BlackTitle "FM"]
[WhiteFideId "1728970"]
[BlackFideId "1705180"]
[WhiteElo "2061"]
[BlackElo "2310"]

1. c4 {[%clk 00:15:07]} {[%emt 00:00:01]} Nf6 {[%clk 00:15:05]} {[%emt
00:00:05]} 2. Nc3 {[%clk 00:14:58]} {[%emt 00:00:14]} c5 {[%clk 00:15:08]}
{[%emt 00:00:02]} 3. g3 {[%clk 00:14:57]} {[%emt 00:00:06]} e6 {[%clk
00:15:09]} {[%emt 00:00:04]} 4. Nf3 {[%clk 00:14:50]} {[%emt 00:00:13]} b6
{[%clk 00:15:12]} {[%emt 00:00:03]} 5. Bg2 {[%clk 00:14:50]} {[%emt 00:00:04]}
Bb7 {[%clk 00:15:15]} {[%emt 00:00:02]} 6. O-O {[%clk 00:14:40]} {[%emt
00:00:15]} Be7 {[%clk 00:15:16]} {[%emt 00:00:03]} 7. d4 {[%clk 00:14:34]}
{[%emt 00:00:11]} cxd4 {[%clk 00:15:16]} {[%emt 00:00:05]} 8. Qxd4 {[%clk
00:14:37]} {[%emt 00:00:01]} d6 {[%clk 00:15:15]} {[%emt 00:00:06]} 9. Bg5
{[%clk 00:14:05]} {[%emt 00:00:37]} a6 {[%clk 00:15:08]} {[%emt 00:00:13]} 10.
Rfd1 {[%clk 00:13:37]} {[%emt 00:00:33]} Nbd7 {[%clk 00:15:06]} {[%emt
00:00:07]} 11. Nd2 {[%clk 00:12:40]} {[%emt 00:01:01]} Bxg2 {[%clk 00:13:32]}
{[%emt 00:01:39]} 12. Kxg2 {[%clk 00:12:44]} {[%emt 00:00:01]} Qc7 {[%clk
00:09:29]} {[%emt 00:04:09]} 13. Nde4 {[%clk 00:11:45]} {[%emt 00:01:03]} O-O
{[%clk 00:08:24]} {[%emt 00:01:10]} 14. Nxd6 {[%clk 00:09:33]} {[%emt
00:02:17]} Qc6+ {[%clk 00:03:28]} {[%emt 00:05:02]} 15. Nde4 {[%clk 00:07:19]}
{[%emt 00:02:19]} Nc5 {[%clk 00:02:36]} {[%emt 00:00:56]} 16. Kg1 {[%clk
00:07:19]} {[%emt 00:00:05]} Rfd8 {[%clk 00:01:50]} {[%emt 00:00:52]} 17. Qe3
{[%clk 00:07:23]} {[%emt 00:00:01]} Rxd1+ {[%clk 00:01:19]} {[%emt 00:00:36]}
18. Rxd1 {[%clk 00:07:24]} {[%emt 00:00:03]} Ncxe4 {[%clk 00:00:57]} {[%emt
00:00:27]} 19. Nxe4 {[%clk 00:07:23]} {[%emt 00:00:06]} Qxc4 {[%clk 00:01:01]}
{[%emt 00:00:02]} 20. Nxf6+ {[%clk 00:06:58]} {[%emt 00:00:29]} gxf6 {[%clk
00:01:04]} {[%emt 00:00:02]} 21. Bxf6 {[%clk 00:06:48]} {[%emt 00:00:15]} Bxf6
{[%clk 00:00:44]} {[%emt 00:00:25]} 22. Qf3 {[%clk 00:06:51]} {[%emt 00:00:01]}
Rc8 {[%clk 00:00:41]} {[%emt 00:00:08]} 23. Qxf6 {[%clk 00:06:48]} {[%emt
00:00:08]} Qxe2 {[%clk 00:00:45]} {[%emt 00:00:01]} 24. Rd4 {[%clk 00:04:11]}
{[%emt 00:02:40]} e5 {[%clk 00:00:24]} {[%emt 00:00:28]} 25. Qg5+ {[%clk
00:03:40]} {[%emt 00:00:36]} Kf8 {[%clk 00:00:28]} 26. Rd8+ {[%clk 00:03:31]}
{[%emt 00:00:13]} Rxd8 {[%clk 00:00:32]} {[%emt 00:00:01]} 27. Qxd8+ {[%clk
00:03:36]} {[%emt 00:00:01]} Kg7 {[%clk 00:00:37]} 28. Qxb6 {[%clk 00:03:39]}
{[%emt 00:00:02]} Qe1+ {[%clk 00:00:36]} {[%emt 00:00:06]} 29. Kg2 {[%clk
00:03:43]} Qe4+ {[%clk 00:00:40]} 30. f3 {[%clk 00:03:48]} Qd3 {[%clk
00:00:36]} {[%emt 00:00:09]} 31. Qc5 {[%clk 00:03:29]} {[%emt 00:00:23]} Qd2+
{[%clk 00:00:37]} {[%emt 00:00:05]} 32. Qf2 {[%clk 00:03:33]} {[%emt 00:00:01]}
Qd3 {[%clk 00:00:41]} 33. b3 {[%clk 00:03:06]} {[%emt 00:00:31]} a5 {[%clk
00:00:43]} {[%emt 00:00:03]} 34. Qb2 {[%clk 00:03:08]} {[%emt 00:00:03]} f6
{[%clk 00:00:40]} {[%emt 00:00:08]} 35. Kf2 {[%clk 00:03:04]} {[%emt 00:00:08]}
h5 {[%clk 00:00:38]} {[%emt 00:00:07]} 36. h4 {[%clk 00:03:05]} {[%emt
00:00:04]} Qd1 {[%clk 00:00:35]} {[%emt 00:00:09]} 37. Kg2 {[%clk 00:02:47]}
{[%emt 00:00:22]} Qd3 {[%clk 00:00:30]} {[%emt 00:00:09]} 38. a3 {[%clk
00:02:50]} {[%emt 00:00:03]} e4 {[%clk 00:00:12]} {[%emt 00:00:23]} 39. fxe4
{[%clk 00:02:43]} {[%emt 00:00:12]} Qxe4+ {[%clk 00:00:16]} {[%emt 00:00:01]}
40. Kh2 {[%clk 00:02:45]} {[%emt 00:00:02]} Qd5 {[%clk 00:00:15]} {[%emt
00:00:07]} 41. Qc2 {[%clk 00:02:30]} {[%emt 00:00:20]} f5 {[%clk 00:00:16]}
{[%emt 00:00:04]} 42. b4 {[%clk 00:01:29]} {[%emt 00:01:06]} axb4 {[%clk
00:00:19]} {[%emt 00:00:02]} 43. axb4 {[%clk 00:01:33]} {[%emt 00:00:01]} Kf6
{[%clk 00:00:20]} {[%emt 00:00:04]} 44. Qc3+ {[%clk 00:01:27]} {[%emt
00:00:11]} Ke6 {[%clk 00:00:20]} {[%emt 00:00:06]} 45. Qc8+ {[%clk 00:01:18]}
{[%emt 00:00:14]} Kf6 {[%emt 00:00:20]} 1-0

[Event "SS Manhem Chess Week 2019 Goteborg Open"]
[Site "Molnlycke kulturhus, Biblioteksgatan 2, Molnlycke, Sweden"]
[Date "2019.08.16"]
[Round "4.11"]
[White "Ziegler, Ari"]
[Black "Svensson, Leif"]
[Result "1-0"]
[TimeControl "15 minutes + 5 seconds per move from move one (Round 1 - 4) / 90 minutes + 30 seconds per move from move one (Round 5 - 8)"]
[WhiteTitle "IM"]
[WhiteFideId "1700987"]
[BlackFideId "1702459"]
[WhiteElo "2300"]
[BlackElo "2027"]

1. e4 {[%clk 00:15:08]} e5 {[%clk 00:15:08]} {[%emt 01:56:06]} 2. Nf3 {[%clk
00:15:12]} {[%emt 00:00:02]} Nf6 {[%clk 00:15:11]} {[%emt 00:00:02]} 3. Nxe5
{[%clk 00:15:15]} {[%emt 00:00:02]} Nxe4 {[%clk 00:15:11]} {[%emt 00:00:05]} 4.
Qe2 {[%clk 00:15:17]} {[%emt 00:00:02]} Qe7 {[%clk 00:15:10]} {[%emt 00:00:06]}
5. Qxe4 {[%clk 00:15:20]} {[%emt 00:00:02]} d6 {[%clk 00:15:14]} 6. d4 {[%clk
00:15:21]} {[%emt 00:00:05]} dxe5 {[%clk 00:15:15]} {[%emt 00:00:04]} 7. dxe5
{[%clk 00:15:24]} {[%emt 00:00:02]} Nc6 {[%clk 00:15:17]} {[%emt 00:00:03]} 8.
f4 {[%clk 00:13:31]} {[%emt 00:01:57]} Bg4 {[%clk 00:13:42]} {[%emt 00:01:39]}
9. Nc3 {[%clk 00:12:23]} {[%emt 00:01:13]} O-O-O {[%clk 00:13:39]} {[%emt
00:00:08]} 10. Be3 {[%clk 00:10:15]} {[%emt 00:02:13]} Qb4 {[%clk 00:11:32]}
{[%emt 00:02:12]} 11. Qxb4 {[%clk 00:09:45]} {[%emt 00:00:35]} Nxb4 {[%clk
00:11:30]} {[%emt 00:00:07]} 12. Rc1 {[%clk 00:09:44]} {[%emt 00:00:06]} Bf5
{[%clk 00:09:36]} {[%emt 00:01:59]} 13. Kf2 {[%clk 00:09:35]} {[%emt 00:00:14]}
Bxc2 {[%clk 00:07:34]} {[%emt 00:02:01]} 14. Kf3 {[%clk 00:07:46]} {[%emt
00:02:00]} Bd3 {[%clk 00:06:03]} {[%emt 00:01:37]} 15. Bxd3 {[%clk 00:06:39]}
{[%emt 00:01:12]} Nxd3 {[%clk 00:06:05]} {[%emt 00:00:03]} 16. Rc2 {[%clk
00:06:38]} {[%emt 00:00:05]} a6 {[%clk 00:05:51]} {[%emt 00:00:19]} 17. a3
{[%clk 00:06:37]} {[%emt 00:00:06]} g5 {[%clk 00:05:43]} {[%emt 00:00:13]} 18.
g3 {[%clk 00:06:16]} {[%emt 00:00:26]} gxf4 {[%clk 00:05:35]} {[%emt 00:00:14]}
19. gxf4 {[%clk 00:06:18]} {[%emt 00:00:03]} Rg8 {[%clk 00:05:34]} {[%emt
00:00:06]} 20. Ne4 {[%clk 00:06:13]} {[%emt 00:00:11]} Be7 {[%clk 00:05:01]}
{[%emt 00:00:38]} 21. Rd2 {[%clk 00:05:50]} {[%emt 00:00:28]} Rd7 {[%clk
00:04:17]} {[%emt 00:00:49]} 22. Rhd1 {[%clk 00:05:39]} {[%emt 00:00:16]} Rgd8
{[%clk 00:04:20]} {[%emt 00:00:03]} 23. b4 {[%clk 00:04:59]} {[%emt 00:00:44]}
Nb2 {[%clk 00:02:02]} {[%emt 00:02:23]} 24. Rxd7 {[%clk 00:04:59]} {[%emt
00:00:06]} Rxd7 {[%clk 00:02:02]} {[%emt 00:00:05]} 25. Rxd7 {[%clk 00:03:52]}
{[%emt 00:01:12]} Kxd7 {[%clk 00:02:05]} {[%emt 00:00:01]} 26. Bc5 {[%clk
00:02:44]} {[%emt 00:01:13]} b6 {[%clk 00:01:24]} {[%emt 00:00:47]} 27. Bxe7
{[%clk 00:02:42]} {[%emt 00:00:06]} Kxe7 {[%clk 00:01:28]} {[%emt 00:00:01]} 28.
Nf6 {[%clk 00:02:42]} {[%emt 00:00:04]} Nc4 {[%clk 00:01:12]} {[%emt 00:00:22]}
29. a4 {[%clk 00:02:45]} {[%emt 00:00:03]} c6 {[%clk 00:01:10]} {[%emt
00:00:07]} 30. Nxh7 {[%clk 00:02:33]} {[%emt 00:00:16]} a5 {[%clk 00:01:14]}
{[%emt 00:00:01]} 31. bxa5 {[%clk 00:02:36]} {[%emt 00:00:02]} bxa5 {[%clk
00:01:16]} {[%emt 00:00:02]} 32. Nf6 {[%clk 00:02:06]} {[%emt 00:00:35]} Nb2
{[%clk 00:01:11]} {[%emt 00:00:11]} 33. h4 {[%clk 00:02:10]} Kf8 {[%clk
00:01:05]} {[%emt 00:00:10]} 34. Nd7+ {[%clk 00:02:12]} {[%emt 00:00:03]} Kg7
{[%clk 00:00:56]} {[%emt 00:00:14]} 35. Nc5 {[%clk 00:02:16]} Nc4 {[%emt
00:00:17]} 36. Ke4 {[%clk 00:02:07]} {[%emt 00:00:08]} Nd2+ {[%clk 00:00:44]}
{[%emt 00:00:12]} 37. Kf5 {[%clk 00:02:08]} {[%emt 00:00:04]} Nf3 {[%clk
00:00:48]} 38. h5 {[%clk 00:02:08]} {[%emt 00:00:05]} Nh4+ {[%clk 00:00:20]}
{[%emt 00:00:34]} 39. Ke4 {[%clk 00:01:48]} {[%emt 00:00:25]} Kh6 {[%clk
00:00:21]} {[%emt 00:00:04]} 40. Nb7 {[%clk 00:01:52]} Kxh5 {[%clk 00:00:21]}
{[%emt 00:00:05]} 41. Nxa5 {[%clk 00:01:55]} {[%emt 00:00:01]} 1-0

[Event "SS Manhem Chess Week 2019 Goteborg Open"]
[Site "Molnlycke kulturhus, Biblioteksgatan 2, Molnlycke, Sweden"]
[Date "2019.08.16"]
[Round "4.12"]
[White "Olsson, William"]
[Black "Castrillon Gomez, Melissa"]
[Result "0-1"]
[TimeControl "15 minutes + 5 seconds per move from move one (Round 1 - 4) / 90 minutes + 30 seconds per move from move one (Round 5 - 8)"]
[BlackTitle "WIM"]
[WhiteFideId "1741721"]
[BlackFideId "4402413"]
[WhiteElo "2015"]
[BlackElo "2227"]

1. c4 {[%clk 00:15:08]} {[%emt 00:00:02]} e5 {[%clk 00:15:08]} {[%emt
00:00:02]} 2. Nc3 {[%clk 00:15:11]} {[%emt 00:00:02]} Nc6 {[%clk 00:15:11]}
{[%emt 00:00:02]} 3. g3 {[%clk 00:15:13]} {[%emt 00:00:03]} g6 {[%clk
00:15:15]} 4. Bg2 {[%clk 00:15:17]} {[%emt 00:00:01]} Bg7 {[%clk 00:15:19]}
{[%emt 00:00:01]} 5. d3 {[%clk 00:15:21]} {[%emt 00:00:01]} d6 {[%clk
00:15:23]} {[%emt 00:00:01]} 6. e3 {[%clk 00:15:18]} {[%emt 00:00:07]} Be6
{[%clk 00:15:25]} {[%emt 00:00:03]} 7. Nge2 {[%clk 00:15:22]} {[%emt 00:00:02]}
Qd7 {[%clk 00:15:29]} {[%emt 00:00:01]} 8. h3 {[%clk 00:15:22]} Nge7 {[%clk
00:15:14]} {[%emt 00:00:24]} 9. a3 {[%clk 00:15:26]} O-O {[%clk 00:14:51]}
{[%emt 00:00:28]} 10. b4 {[%clk 00:15:19]} a6 {[%clk 00:14:55]} {[%emt
00:00:14]} 11. Bb2 {[%clk 00:15:15]} f5 {[%clk 00:14:53]} {[%emt 00:00:16]} 12.
Nd5 {[%clk 00:14:52]} Rae8 {[%clk 00:14:25]} {[%emt 00:01:01]} 13. O-O {[%clk
00:14:08]} Nd8 {[%clk 00:14:08]} {[%emt 00:01:10]} 14. Nxe7+ {[%clk 00:13:47]}
Rxe7 {[%clk 00:14:09]} {[%emt 00:00:31]} 15. Kh2 {[%clk 00:13:50]} c6 {[%clk
00:13:40]} {[%emt 00:00:36]} 16. Rb1 {[%clk 00:13:47]} g5 {[%clk 00:12:43]}
{[%emt 00:01:10]} 17. f4 {[%clk 00:12:07]} gxf4 {[%clk 00:12:43]} {[%emt
00:01:51]} 18. exf4 {[%clk 00:12:11]} {[%emt 00:00:02]} e4 {[%clk 00:12:32]}
{[%emt 00:00:16]} 19. Bxg7 {[%clk 00:11:49]} {[%emt 00:00:26]} Rxg7 {[%clk
00:12:28]} {[%emt 00:00:09]} 20. Nd4 {[%clk 00:09:19]} {[%emt 00:02:35]} d5
{[%emt 00:01:14]} 21. c5 {[%clk 00:06:25]} {[%emt 00:00:26]} Rf6 {[%clk
00:12:11]} 22. dxe4 fxe4 23. Rb3 {[%clk 00:06:11]} {[%emt 00:00:01]} Bf7 {[%clk
00:07:46]} {[%emt 00:04:32]} 24. f5 {[%clk 00:05:47]} {[%emt 00:00:29]} Be8
{[%clk 00:07:29]} {[%emt 00:00:23]} 25. Rf4 {[%clk 00:05:23]} {[%emt 00:00:29]}
Qf7 {[%clk 00:07:17]} {[%emt 00:00:17]} 26. Qf1 {[%clk 00:04:20]} {[%emt
00:01:07]} Bd7 {[%clk 00:06:56]} {[%emt 00:00:27]} 27. h4 {[%clk 00:03:51]}
{[%emt 00:00:34]} Qe7 {[%clk 00:06:43]} {[%emt 00:00:19]} 28. Qf2 {[%clk
00:03:54]} {[%emt 00:00:02]} Nf7 {[%clk 00:06:25]} {[%emt 00:00:23]} 29. Bh3
{[%clk 00:02:32]} {[%emt 00:01:27]} Ne5 {[%clk 00:06:05]} {[%emt 00:00:25]} 30.
Qe2 {[%clk 00:02:25]} {[%emt 00:00:11]} h6 {[%clk 00:04:37]} {[%emt 00:01:33]}
31. Rf1 {[%clk 00:01:35]} {[%emt 00:00:54]} Nd3 {[%clk 00:04:25]} {[%emt
00:00:19]} 32. Qe3 {[%clk 00:01:12]} {[%emt 00:00:28]} Kh7 {[%clk 00:04:28]}
{[%emt 00:00:02]} 33. Rg1 {[%clk 00:01:01]} {[%emt 00:00:16]} Bc8 {[%clk
00:04:18]} {[%emt 00:00:14]} 34. Rg2 {[%clk 00:00:36]} {[%emt 00:00:29]} Qc7
{[%clk 00:03:47]} {[%emt 00:00:37]} 35. Rb1 {[%clk 00:00:24]} {[%emt 00:00:17]}
Ne5 {[%clk 00:03:20]} {[%emt 00:00:32]} 36. Qe2 {[%clk 00:00:21]} {[%emt
00:00:08]} Nc4 {[%clk 00:02:59]} {[%emt 00:00:26]} 37. Rb3 {[%clk 00:00:15]}
{[%emt 00:00:11]} Qe5 {[%clk 00:02:54]} {[%emt 00:00:09]} 38. Ne6 {[%clk
00:00:06]} {[%emt 00:00:14]} Bxe6 {[%clk 00:02:50]} {[%emt 00:00:09]} 39. fxe6
{[%clk 00:00:09]} {[%emt 00:00:02]} Qc7 {[%clk 00:01:46]} {[%emt 00:01:10]} 40.
a4 {[%clk 00:00:08]} {[%emt 00:00:07]} Ne5 {[%clk 00:01:49]} {[%emt 00:00:02]}
41. b5 {[%emt 00:00:07]} 0-1

[Event "SS Manhem Chess Week 2019 Goteborg Open"]
[Site "Molnlycke kulturhus, Biblioteksgatan 2, Molnlycke, Sweden"]
[Date "2019.08.16"]
[Round "4.13"]
[White "Johnson, Daniel"]
[Black "Wiklund, Johan"]
[Result "1-0"]
[TimeControl "15 minutes + 5 seconds per move from move one (Round 1 - 4) / 90 minutes + 30 seconds per move from move one (Round 5 - 8)"]
[WhiteFideId "1721283"]
[BlackFideId "1713817"]
[WhiteElo "2201"]
[BlackElo "1956"]

1. b3 {[%clk 01:30:57]} e5 {[%clk 01:30:59]} 2. Bb2 {[%clk 01:30:57]} Nc6
{[%clk 00:15:03]} {[%emt 31:32:53]} 3. e3 {[%emt 00:00:07]} g6 {[%clk
00:14:55]} {[%emt 00:00:10]} 4. d4 {[%clk 00:12:29]} {[%emt 00:00:49]} exd4
{[%clk 00:14:53]} {[%emt 00:00:07]} 5. exd4 {[%clk 00:12:33]} {[%emt 00:00:02]}
Bg7 {[%clk 00:14:54]} {[%emt 00:00:03]} 6. Nf3 {[%clk 00:12:35]} {[%emt
00:00:03]} d6 {[%clk 00:14:43]} {[%emt 00:00:17]} 7. h3 {[%emt 00:00:23]} Nge7
{[%clk 00:14:30]} 8. Bd3 {[%clk 00:12:32]} {[%emt 00:00:05]} O-O {[%clk
00:14:32]} {[%emt 00:00:04]} 9. O-O {[%clk 00:12:35]} {[%emt 00:00:02]} Nb4
{[%clk 00:13:49]} {[%emt 00:00:49]} 10. Be2 {[%clk 00:11:51]} {[%emt 00:00:49]}
Bf5 {[%clk 00:13:47]} {[%emt 00:00:06]} 11. Na3 {[%clk 00:11:50]} {[%emt
00:00:06]} Re8 {[%clk 00:13:10]} {[%emt 00:00:42]} 12. c3 {[%clk 00:11:48]}
{[%emt 00:00:07]} Nbd5 {[%clk 00:13:08]} {[%emt 00:00:07]} 13. Qd2 {[%clk
00:11:43]} {[%emt 00:00:10]} a5 {[%clk 00:12:02]} {[%emt 00:01:11]} 14. Rfe1
{[%clk 00:11:26]} {[%emt 00:00:22]} Qd7 {[%clk 00:11:19]} {[%emt 00:00:49]} 15.
Rad1 {[%clk 00:10:43]} {[%emt 00:00:46]} Bxh3 {[%clk 00:09:20]} {[%emt
00:02:05]} 16. gxh3 {[%clk 00:09:38]} {[%emt 00:01:11]} Qxh3 {[%clk 00:09:23]}
{[%emt 00:00:02]} 17. Nh2 {[%clk 00:06:54]} {[%emt 00:02:49]} Bh6 {[%clk
00:09:05]} {[%emt 00:00:24]} 18. Qd3 {[%clk 00:06:57]} {[%emt 00:00:02]} Qd7
{[%clk 00:07:59]} {[%emt 00:01:11]} 19. Bg4 {[%clk 00:05:57]} {[%emt 00:01:04]}
f5 {[%clk 00:07:51]} {[%emt 00:00:14]} 20. Bf3 {[%clk 00:05:23]} {[%emt
00:00:39]} Nf4 {[%clk 00:07:28]} {[%emt 00:00:28]} 21. Qf1 {[%clk 00:05:06]}
{[%emt 00:00:21]} g5 {[%clk 00:06:54]} {[%emt 00:00:40]} 22. d5 {[%clk
00:03:36]} {[%emt 00:01:35]} g4 {[%clk 00:06:45]} {[%emt 00:00:14]} 23. Bg2
{[%clk 00:03:36]} {[%emt 00:00:04]} Neg6 {[%clk 00:06:42]} {[%emt 00:00:08]} 24.
Bc1 {[%clk 00:02:23]} {[%emt 00:01:19]} Nh4 {[%clk 00:05:50]} {[%emt 00:00:56]}
25. Bxf4 {[%clk 00:02:25]} {[%emt 00:00:03]} Bxf4 {[%clk 00:05:54]} {[%emt
00:00:01]} 26. Re6 {[%clk 00:02:03]} {[%emt 00:00:26]} Qg7 {[%clk 00:05:34]}
{[%emt 00:00:24]} 27. Qe1 {[%clk 00:01:40]} {[%emt 00:00:29]} Kf7 {[%clk
00:04:43]} {[%emt 00:00:57]} 28. Rd3 {[%clk 00:01:40]} {[%emt 00:00:04]} Qg5
{[%clk 00:03:58]} {[%emt 00:00:50]} 29. Nb5 {[%clk 00:00:13]} {[%emt 00:01:32]}
Rg8 {[%clk 00:02:46]} {[%emt 00:01:16]} 30. Qe2 {[%clk 00:00:16]} {[%emt
00:00:03]} Rac8 {[%clk 00:02:33]} {[%emt 00:00:18]} 31. Nf1 {[%clk 00:00:08]}
{[%emt 00:00:12]} Rg7 {[%clk 00:01:58]} {[%emt 00:00:40]} 32. Ng3 {[%clk
00:00:09]} {[%emt 00:00:04]} Be5 {[%clk 00:01:38]} {[%emt 00:00:25]} 33. Rxe5
{[%clk 00:00:06]} {[%emt 00:00:08]} dxe5 {[%clk 00:01:40]} {[%emt 00:00:03]} 34.
Qxe5 {[%clk 00:00:10]} {[%emt 00:00:01]} Rgg8 {[%clk 00:00:53]} {[%emt
00:00:52]} 35. Qe6+ {[%clk 00:00:13]} {[%emt 00:00:02]} Kg7 {[%clk 00:00:55]}
{[%emt 00:00:04]} 36. d6 {[%clk 00:00:11]} {[%emt 00:00:07]} f4 {[%clk
00:00:50]} {[%emt 00:00:09]} 37. Ne4 {[%clk 00:00:08]} {[%emt 00:00:08]} Qg6
{[%clk 00:00:34]} {[%emt 00:00:21]} 38. Qe5+ {[%clk 00:00:09]} {[%emt
00:00:04]} Kf7 {[%clk 00:00:36]} {[%emt 00:00:03]} 39. d7 {[%clk 00:00:10]}
{[%emt 00:00:04]} Rcd8 {[%clk 00:00:39]} {[%emt 00:00:02]} 40. Nbd6+ {[%clk
00:00:11]} {[%emt 00:00:04]} cxd6 {[%clk 00:00:42]} {[%emt 00:00:03]} 41. Nxd6+
{[%clk 00:00:15]} {[%emt 00:00:02]} Kf8 {[%clk 00:00:27]} {[%emt 00:00:19]} 42.
Be4 {[%clk 00:00:18]} {[%emt 00:00:01]} Qg7 {[%clk 00:00:13]} {[%emt 00:00:20]}
43. Qe8+ {[%clk 00:00:20]} {[%emt 00:00:03]} Rxe8 {[%clk 00:00:06]} {[%emt
00:00:12]} 44. dxe8=R# {[%clk 00:00:21]} {[%emt 00:00:04]} 1-0

[Event "SS Manhem Chess Week 2019 Goteborg Open"]
[Site "Molnlycke kulturhus, Biblioteksgatan 2, Molnlycke, Sweden"]
[Date "2019.08.16"]
[Round "4.14"]
[White "Westerlund, Ola"]
[Black "Arnelind, Mikael"]
[Result "0-1"]
[TimeControl "15 minutes + 5 seconds per move from move one (Round 1 - 4) / 90 minutes + 30 seconds per move from move one (Round 5 - 8)"]
[WhiteFideId "1712101"]
[BlackFideId "1704290"]
[WhiteElo "1845"]
[BlackElo "2187"]

1. d4 {[%clk 00:15:07]} {[%emt 00:00:42]} Nf6 {[%clk 00:15:06]} 2. c4 {[%clk
00:15:10]} {[%emt 00:00:06]} e6 {[%clk 00:15:08]} {[%emt 00:00:03]} 3. Nf3
{[%clk 00:15:14]} b6 {[%clk 00:15:10]} {[%emt 00:00:04]} 4. Nc3 {[%clk
00:15:17]} {[%emt 00:00:02]} Bb4 {[%clk 00:15:05]} {[%emt 00:00:09]} 5. Bg5
{[%clk 00:15:21]} {[%emt 00:00:02]} Bb7 {[%clk 00:14:04]} {[%emt 00:01:06]} 6.
e3 {[%clk 00:14:41]} {[%emt 00:00:44]} h6 {[%clk 00:13:12]} {[%emt 00:00:58]} 7.
Bh4 {[%clk 00:14:45]} {[%emt 00:00:01]} g5 {[%clk 00:11:43]} {[%emt 00:01:34]}
8. Bg3 {[%clk 00:14:49]} {[%emt 00:00:01]} Ne4 {[%clk 00:11:45]} {[%emt
00:00:02]} 9. Qc2 {[%clk 00:14:53]} {[%emt 00:00:01]} d6 {[%clk 00:11:07]}
{[%emt 00:00:43]} 10. Bd3 {[%clk 00:12:46]} {[%emt 00:02:12]} Bxc3+ {[%clk
00:10:40]} {[%emt 00:00:32]} 11. bxc3 {[%clk 00:12:49]} {[%emt 00:00:02]} f5
{[%clk 00:09:51]} {[%emt 00:00:54]} 12. d5 {[%clk 00:11:30]} {[%emt 00:01:24]}
exd5 {[%clk 00:09:41]} {[%emt 00:00:14]} 13. Nd4 {[%clk 00:09:29]} {[%emt
00:02:06]} dxc4 {[%clk 00:06:57]} {[%emt 00:02:49]} 14. Bxc4 {[%clk 00:09:26]}
{[%emt 00:00:08]} Qf6 {[%clk 00:06:49]} {[%emt 00:00:13]} 15. f3 {[%clk
00:07:41]} {[%emt 00:01:51]} Nxg3 {[%clk 00:06:48]} {[%emt 00:00:06]} 16. hxg3
{[%clk 00:07:45]} Nd7 {[%clk 00:05:29]} {[%emt 00:01:23]} 17. Qxf5 {[%clk
00:07:20]} {[%emt 00:00:30]} O-O-O {[%clk 00:05:05]} {[%emt 00:00:28]} 18. Be6
{[%clk 00:06:41]} {[%emt 00:00:44]} Qg7 {[%clk 00:04:31]} {[%emt 00:00:39]} 19.
a4 {[%clk 00:05:48]} {[%emt 00:00:58]} a5 {[%clk 00:04:28]} {[%emt 00:00:08]}
20. Bd5 {[%clk 00:04:49]} {[%emt 00:01:03]} Qe5 {[%clk 00:03:34]} {[%emt
00:00:59]} 21. Bxb7+ {[%clk 00:04:16]} {[%emt 00:00:39]} Kxb7 {[%clk 00:03:37]}
{[%emt 00:00:01]} 22. Kf2 {[%clk 00:03:56]} {[%emt 00:00:25]} Qxf5 {[%clk
00:03:23]} {[%emt 00:00:19]} 23. Nxf5 {[%clk 00:04:00]} {[%emt 00:00:01]} h5
{[%clk 00:03:22]} {[%emt 00:00:05]} 24. Ng7 {[%clk 00:03:34]} {[%emt 00:00:30]}
Nf6 {[%clk 00:03:16]} {[%emt 00:00:11]} 25. Ne6 {[%clk 00:03:25]} {[%emt
00:00:15]} Rdg8 {[%clk 00:03:19]} {[%emt 00:00:02]} 26. Rad1 {[%clk 00:03:06]}
{[%emt 00:00:24]} Rh6 {[%clk 00:03:18]} {[%emt 00:00:06]} 27. Rd3 {[%clk
00:02:10]} {[%emt 00:01:00]} Nd7 {[%clk 00:02:37]} {[%emt 00:00:47]} 28. Nd4
{[%clk 00:02:02]} {[%emt 00:00:13]} Nc5 {[%clk 00:02:39]} {[%emt 00:00:02]} 29.
Rdd1 {[%clk 00:01:51]} {[%emt 00:00:17]} Nxa4 {[%clk 00:02:40]} {[%emt
00:00:04]} 30. Nf5 {[%clk 00:01:44]} {[%emt 00:00:13]} Rh7 {[%clk 00:02:04]}
{[%emt 00:00:40]} 31. Rd3 {[%clk 00:01:07]} {[%emt 00:00:42]} Nb2 {[%clk
00:01:36]} {[%emt 00:00:33]} 32. Rd4 {[%clk 00:00:59]} {[%emt 00:00:13]} a4
{[%clk 00:01:33]} {[%emt 00:00:08]} 33. g4 {[%clk 00:01:00]} {[%emt 00:00:04]}
h4 {[%clk 00:01:28]} {[%emt 00:00:09]} 34. Rb1 {[%clk 00:00:38]} {[%emt
00:00:26]} a3 {[%clk 00:01:32]} {[%emt 00:00:02]} 35. Ra1 {[%clk 00:00:42]} Ra8
{[%clk 00:01:35]} {[%emt 00:00:02]} 36. Ke2 {[%clk 00:00:32]} {[%emt 00:00:15]}
h3 {[%clk 00:01:36]} {[%emt 00:00:03]} 37. gxh3 {[%clk 00:00:30]} {[%emt
00:00:07]} Rxh3 {[%clk 00:01:40]} {[%emt 00:00:02]} 38. Rb4 {[%clk 00:00:10]}
{[%emt 00:00:25]} Rh2+ {[%clk 00:01:41]} 0-1